bitfinex/quotes_ETHUSD_20220310
["timestamp","ask_amount","ask_price","bid_price","bid_amount"]
[1646882184912,3.05245291,2672.3,2672.2,3.93971573]
[1646882186461,1.17952291,2672.3,2672.2,3.93971573]
[1646882186661,1.92421665,2672.4,2672.2,3.93971573]
[1646882187061,1.92115566,2672.4,2672.2,3.93971573]
[1646882187264,1.92421665,2672.4,2672.2,0.00460136]
[1646882187461,1.92421665,2672.4,2672.3,3.93511437]
[1646882188260,1.92115566,2672.4,2672.3,3.93511437]
[1646882189513,0.93608,2672.8,2672.3,3.93511437]
[1646882189711,0.00306098,2672.5,2672.4,0.011763]
[1646882190114,0.00306098,2672.5,2672.3,3.93511437]
[1646882190512,1.8308372,2672.8,2672.3,3.93511437]
[1646882190917,0.00306098,2672.5,2672.3,3.93511437]
[1646882191726,7.32,2672.9,2672.4,3.599023]
[1646882191918,0.93599,2673.1,2672.7,0.011874]
[1646882192121,0.01224209,2672.9,2672.7,0.011874]
[1646882192720,0.01224209,2672.9,2672.8,3.93511437]
[1646882192920,1.0699866,2673.0,2672.8,3.93511437]
[1646882193357,0.00306096,2672.9,2672.8,3.93511437]
[1646882194158,2.99469228,2673.0,2672.8,3.93511437]
[1646882194556,2.99775324,2673.0,2672.8,3.93511437]
[1646882194758,3.99775324,2673.0,2672.8,3.93511437]
[1646882195359,2.99469228,2673.0,2672.8,3.93511437]
[1646882195560,2.99775323,2673.0,2672.8,3.93511437]
[1646882195764,2.94541755,2673.0,2672.8,3.93511437]
[1646882196163,2.94541755,2673.0,2672.9,0.011798]
[1646882196562,2.94541755,2673.0,2672.8,3.93511437]
[1646882196563,2.9423566,2673.0,2672.8,3.93511437]
[1646882197909,2.9423566,2673.0,2672.6,0.011667]
[1646882198107,2.94541755,2673.0,2672.9,3.93511437]
[1646882198908,2.94564867,2673.0,2672.9,3.93961629]
[1646882199509,2.94564867,2673.0,2672.9,3.93864425]
[1646882203069,2.94564867,2673.0,2672.9,0.00450192]
[1646882203266,1.07327867,2673.0,2672.9,3.93864425]
[1646882203465,0.00329207,2673.0,2672.9,3.93864425]
[1646882203866,0.03685833,2673.0,2672.9,3.93864425]
[1646882208656,0.03685833,2673.0,2672.9,3.95225925]
[1646882208856,0.04804708,2673.0,2672.9,3.95225925]
[1646882209458,0.04804708,2673.0,2672.9,3.93864425]
[1646882212507,0.04804708,2673.0,2672.9,3.95052425]
[1646882212710,0.04804708,2673.0,2672.9,3.93864425]
[1646882218768,0.06745008,2673.0,2672.9,3.93864425]
[1646882221319,1.00361008,2673.0,2672.9,3.93864425]
[1646882221916,1.00361008,2673.0,2672.9,3.93773268]
[1646882222718,0.06745008,2673.0,2672.9,3.93773268]
[1646882223964,0.06745008,2673.0,2672.9,3.93864425]
[1646882223965,0.13458258,2673.0,2672.9,3.93864425]
[1646882225666,0.13458258,2673.0,2672.9,3.95033925]
[1646882228816,0.13458258,2673.0,2672.9,4.25033925]
[1646882229416,0.06745008,2673.0,2672.9,4.25033925]
[1646882231868,0.06745008,2673.0,2672.9,4.23864425]
[1646882235429,0.06745008,2673.0,2672.9,5.79018914]
[1646882237941,0.06745008,2673.0,2672.9,4.23864425]
[1646882238170,0.06745008,2673.0,2672.9,5.79020611]
[1646882238368,0.06745008,2673.0,2672.9,5.49020611]
[1646882238768,0.06745008,2673.0,2672.9,5.49018477]
[1646882239169,0.06745008,2673.0,2672.9,3.93864425]
[1646882240171,0.06745008,2673.0,2672.9,5.49017793]
[1646882240374,0.06745008,2673.0,2672.9,8.99017793]
[1646882240772,0.06745008,2673.0,2672.9,9.29017793]
[1646882242818,0.06745008,2673.0,2672.9,5.79017793]
[1646882244220,0.06745008,2673.0,2672.9,9.29017793]
[1646882244621,0.06745008,2673.0,2672.9,5.79017793]
[1646882245020,0.06745008,2673.0,2672.9,9.29017793]
[1646882245220,0.06745008,2673.0,2672.9,5.79017793]
[1646882245675,0.06745008,2673.0,2672.9,5.78864266]
[1646882252120,0.06745008,2673.0,2672.9,5.49017793]
[1646882252320,0.06745008,2673.0,2672.9,3.93864425]
[1646882253076,0.06745008,2673.0,2672.9,5.49018203]
[1646882253264,0.06745008,2673.0,2672.9,3.93864425]
[1646882253464,0.06595684,2673.0,2672.9,3.93864425]
[1646882253665,0.06801886,2673.0,2672.9,5.49018009]
[1646882255370,0.06801886,2673.0,2672.9,8.99018009]
[1646882255570,0.06801886,2673.0,2672.9,5.49018009]
[1646882258822,0.06801886,2673.0,2672.9,8.99018009]
[1646882259023,0.06801886,2673.0,2672.9,5.49018009]
[1646882263169,0.06801886,2673.0,2672.9,8.99018009]
[1646882263870,0.06801886,2673.0,2672.9,5.79018009]
[1646882265720,0.06801886,2673.0,2672.9,9.29018009]
[1646882266722,0.06801886,2673.0,2672.9,5.79018009]
[1646882267323,0.06801886,2673.0,2672.9,9.29018009]
[1646882268171,0.06801886,2673.0,2672.9,5.79018009]
[1646882268371,0.06801886,2673.0,2672.9,9.29018009]
[1646882268971,0.09343032,2673.0,2672.9,9.29018009]
[1646882270173,0.09343032,2673.0,2672.9,5.79018009]
[1646882271828,0.002784,2673.1,2673.0,0.18686063]
[1646882272025,0.002784,2673.1,2673.0,1.73839647]
[1646882272226,0.04598888,2673.4,2673.0,1.73839647]
[1646882272429,0.00278428,2673.2,2673.1,1.55153584]
[1646882273437,0.04598888,2673.4,2673.1,1.55153584]
[1646882273636,0.00278428,2673.3,2673.1,1.55153584]
[1646882274633,0.04598888,2673.4,2673.1,1.55153584]
[1646882274833,0.00278428,2673.3,2673.1,1.55153584]
[1646882275870,0.04231666,2673.3,2673.1,1.55153584]
[1646882276071,0.0453776,2673.3,2673.1,1.55153584]
[1646882277170,0.04231666,2673.3,2673.1,1.55153584]
[1646882277371,0.0453776,2673.3,2673.1,1.55153584]
[1646882277573,0.0453776,2673.3,2673.2,3.93414233]
[1646882277772,0.0453776,2673.3,2673.2,5.48567817]
[1646882278171,0.04231666,2673.3,2673.2,5.48567817]
[1646882278872,0.04644768,2673.3,2673.2,5.48998346]
[1646882282326,0.00413102,2673.3,2673.2,5.48998346]
[1646882282824,0.00413102,2673.3,2673.2,9.94700546]
[1646882283084,0.00413102,2673.3,2673.2,10.24700546]
[1646882283270,0.00413102,2673.3,2673.2,10.62200546]
[1646882283472,0.00413102,2673.3,2673.2,11.62200546]
[1646882283671,0.00302859,2673.4,2673.2,11.62200546]
[1646882283871,0.00302859,2673.4,2673.3,6.13255316]
[1646882283872,2.859e-05,2673.4,2673.3,6.13255316]
[1646882284076,2.859e-05,2673.4,2673.3,7.13412784]
[1646882284370,0.00413102,2673.5,2673.3,9.48942188]
[1646882284574,0.00413102,2673.5,2673.4,1.55153584]
[1646882284771,0.00413102,2673.5,2673.4,1.85153584]
[1646882287435,0.00413102,2673.5,2673.4,1.86344084]
[1646882289036,0.00413102,2673.5,2673.4,1.8678903]
[1646882289341,0.00413102,2673.5,2673.4,5.3678903]
[1646882289536,0.00413102,2673.5,2673.4,9.30203263]
[1646882289740,0.00413102,2673.5,2673.4,10.30203263]
[1646882291774,0.01224898,2674.0,2673.7,0.00519934]
[1646882291974,0.01224898,2674.0,2673.9,0.024302]
[1646882292174,0.01224898,2674.0,2673.9,1.57583784]
[1646882292377,0.01224898,2674.0,2673.9,1.87583784]
[1646882292575,0.05334953,2674.5,2673.9,3.07519575]
[1646882292775,0.05334953,2674.5,2674.3,0.012151]
[1646882292976,0.05334953,2674.5,2674.3,0.024096]
[1646882293277,0.05334953,2674.5,2674.4,0.012083]
[1646882293477,0.05334953,2674.5,2674.3,0.024096]
[1646882293876,0.05334953,2674.5,2674.3,0.011669]
[1646882294080,0.05334953,2674.5,2674.3,0.011824]
[1646882294319,0.05334953,2674.5,2674.4,0.012127]
[1646882294520,0.05334953,2674.5,2674.2,0.9354455]
[1646882294719,0.05334953,2674.5,2674.1,0.011667]
[1646882294924,0.05334953,2674.5,2674.4,3.93414233]
[1646882295321,0.05626118,2674.5,2674.4,3.93414233]
[1646882296225,0.05334953,2674.5,2674.4,3.93414233]
[1646882296826,0.05334953,2674.5,2674.4,3.94606733]
[1646882297429,0.05334953,2674.5,2674.4,3.93414233]
[1646882298867,0.05334953,2674.5,2674.4,3.93802985]
[1646882299468,0.05334953,2674.5,2674.4,3.94985185]
[1646882299668,0.05334953,2674.5,2674.4,3.98748483]
[1646882300079,0.05334953,2674.5,2674.4,3.98743383]
[1646882300372,0.05334953,2674.5,2674.4,3.97566283]
[1646882304927,0.94929933,2674.6,2674.4,3.98734683]
[1646882305327,0.94929933,2674.6,2674.4,0.0532045]
[1646882305581,0.94929933,2674.6,2674.5,3.93414233]
[1646882305774,0.94629308,2674.6,2674.5,3.93414233]
[1646882306174,0.94929932,2674.6,2674.5,3.93414233]
[1646882306576,0.94929932,2674.6,2674.5,3.95012133]
[1646882306974,0.94629308,2674.6,2674.5,3.95012133]
[1646882307576,0.94629308,2674.6,2674.5,3.93414233]
[1646882307779,0.94629308,2674.6,2674.5,3.94602733]
[1646882308179,0.94629308,2674.6,2674.5,3.93414233]
[1646882308977,0.94629308,2674.6,2674.5,3.93802134]
[1646882309325,0.94629308,2674.6,2674.3,0.011667]
[1646882309326,3.4,2674.5,2673.9,0.011667]
[1646882309525,3.4,2674.5,2673.7,0.00519934]
[1646882309526,5.42112335,2674.4,2673.7,0.00519934]
[1646882309723,0.05323238,2674.3,2673.7,0.00519934]
[1646882309922,0.05323238,2674.3,2673.7,0.01687534]
[1646882310124,0.05323238,2674.3,2674.0,0.012151]
[1646882310326,0.05323238,2674.3,2673.9,0.011667]
[1646882310522,0.04965092,2674.5,2674.1,0.024302]
[1646882310725,0.04965092,2674.5,2674.2,0.012079]
[1646882310929,0.00306266,2674.3,2674.1,0.023818]
[1646882311127,0.00306266,2674.3,2674.0,0.011667]
[1646882311426,0.00306266,2674.3,2674.0,0.02402]
[1646882311825,0.04801006,2674.4,2674.0,0.02402]
[1646882312025,0.00306266,2674.3,2674.1,0.012151]
[1646882312425,0.00306266,2674.3,2674.1,0.024107]
[1646882312625,0.00306266,2674.3,2674.2,0.012151]
[1646882312828,0.00306266,2674.3,2674.1,0.024107]
[1646882313089,0.04801006,2674.4,2674.1,0.012151]
[1646882313273,0.05107272,2674.4,2674.1,0.011792]
[1646882313472,0.05107272,2674.4,2674.1,0.023721]
[1646882313674,0.05107272,2674.4,2674.3,0.012151]
[1646882313873,0.05107272,2674.4,2674.2,0.01637571]
[1646882314073,0.05107272,2674.4,2674.2,0.00422471]
[1646882314274,0.93558,2674.5,2674.2,0.01618171]
[1646882314472,0.93558,2674.5,2674.2,0.00422471]
[1646882314673,0.93864265,2674.5,2674.3,0.02422]
[1646882314872,0.93864265,2674.5,2674.3,0.012069]
[1646882315078,0.93864265,2674.5,2674.3,0.024063]
[1646882315277,0.93864265,2674.5,2674.3,0.023918]
[1646882315481,0.93558,2674.5,2674.3,0.012069]
[1646882315877,0.93558,2674.5,2674.2,0.01599971]
[1646882315878,0.93864265,2674.5,2674.2,0.01599971]
[1646882316178,1.87435265,2674.5,2674.2,0.02792471]
[1646882316376,0.05204484,2674.4,2674.2,0.01599971]
[1646882316578,0.05204484,2674.4,2674.2,0.00422471]
[1646882317725,1.0,2674.3,2674.2,0.00422471]
[1646882318924,0.0551075,2674.4,2674.2,0.00422471]
[1646882319126,0.05204484,2674.4,2673.7,0.03274741]
[1646882319324,0.0551075,2674.4,2673.7,0.00941341]
[1646882320325,0.05204484,2674.4,2673.7,0.00941341]
[1646882320585,0.00306267,2674.2,2673.7,0.00941341]
[1646882320781,0.00306267,2674.2,2673.7,0.02108441]
[1646882320978,0.00306267,2674.2,2673.8,0.012102]
[1646882321378,0.05204484,2674.4,2673.8,0.012102]
[1646882321580,0.05204484,2674.4,2673.9,0.012145]
[1646882321779,0.00306267,2674.1,2673.9,0.024091]
[1646882322080,0.00306267,2674.1,2673.9,0.012145]
[1646882322780,0.05204484,2674.4,2673.9,0.012145]
[1646882322982,0.00306267,2674.1,2673.9,0.011976]
[1646882323385,0.00306267,2674.1,2674.0,0.012151]
[1646882323781,0.05204484,2674.4,2674.0,0.01639699]
[1646882323982,0.05204484,2674.4,2674.1,0.012151]
[1646882324183,0.00306267,2674.2,2674.1,0.012151]
[1646882324423,0.00306267,2674.2,2674.0,0.01639699]
[1646882324622,0.00306267,2674.2,2674.0,0.01611099]
[1646882325024,0.05204484,2674.4,2674.1,0.012056]
[1646882325424,0.05204484,2674.4,2674.0,0.01611099]
[1646882325425,0.00306267,2674.2,2674.0,0.00424599]
[1646882325931,0.93870267,2674.2,2674.0,0.00424599]
[1646882326129,0.93870267,2674.2,2674.0,0.02786699]
[1646882326327,0.93564,2674.2,2674.0,0.02786699]
[1646882326526,0.00306267,2674.2,2674.0,0.02786699]
[1646882327528,0.05204484,2674.4,2674.0,0.02786699]
[1646882327728,0.00306267,2674.2,2674.1,0.012151]
[1646882328584,0.05204484,2674.4,2674.0,0.01616199]
[1646882328781,0.93564,2674.3,2674.0,0.01614199]
[1646882328982,0.93870266,2674.3,2674.0,0.01614199]
[1646882329783,0.93564,2674.3,2674.0,0.01614199]
[1646882330181,0.93870266,2674.3,2674.0,0.01614199]
[1646882330382,0.93870266,2674.3,2674.1,0.012107]
[1646882330582,0.00306266,2674.3,2674.2,0.012079]
[1646882330984,0.05204484,2674.4,2674.2,0.011922]
[1646882331187,0.05204484,2674.4,2674.0,0.00424599]
[1646882331386,0.0551075,2674.4,2674.1,1.55056523]
[1646882331583,0.00306266,2674.4,2674.1,1.55056523]
[1646882332222,0.05815413,2674.6,2674.1,1.55056523]
[1646882332626,0.00306266,2674.4,2674.1,1.55056523]
[1646882333021,0.93863266,2674.4,2674.1,1.55056523]
[1646882333422,0.93557,2674.4,2674.1,1.55056523]
[1646882333933,0.93863266,2674.4,2674.3,0.00421407]
[1646882334622,0.93557,2674.4,2674.3,0.00421407]
[1646882336784,0.00289718,2674.5,2674.3,0.00421407]
[1646882336986,0.99366413,2674.6,2674.3,0.00421407]
[1646882337385,0.00289718,2674.5,2674.3,0.00421407]
[1646882338189,1.09099718,2674.5,2674.3,0.00421407]
[1646882338387,18.292915,2674.4,2674.3,0.00421407]
[1646882338589,4.945,2674.4,2674.3,0.00421407]
[1646882338787,2.445,2674.4,2674.3,0.00421407]
[1646882338986,2.445,2674.4,2673.7,0.00941341]
[1646882339193,1.00747898,2674.1,2673.7,0.00941341]
[1646882340230,2.00747898,2674.1,2673.7,0.00941341]
[1646882340528,0.9800338,2673.9,2673.7,0.00941341]
[1646882340736,3.5,2673.8,2673.7,0.00941341]
[1646882340934,3.8,2673.7,2673.0,0.18686063]
[1646882341131,0.04986178,2673.6,2673.1,1.55101408]
[1646882341330,3.5,2673.6,2673.1,1.55101408]
[1646882341631,3.5,2673.6,2673.0,0.18686063]
[1646882341632,1.04286613,2673.5,2673.0,0.18686063]
[1646882342031,1.0,2673.5,2673.0,0.18686063]
[1646882342431,0.56683811,2673.8,2673.0,0.18686063]
[1646882342432,0.00306242,2673.7,2673.0,0.18686063]
[1646882342829,0.00306242,2673.7,2673.3,1.21059213]
[1646882343093,1.50261811,2673.8,2673.3,1.51059213]
[1646882343275,1.50261811,2673.8,2673.4,0.07632261]
[1646882343880,0.00352904,2673.5,2673.4,0.07632261]
[1646882344084,0.00352904,2673.5,2673.3,1.51565047]
[1646882344679,0.00352904,2673.5,2673.4,0.07783569]
[1646882344880,0.00352904,2673.5,2673.3,0.30505834]
[1646882345081,0.00352904,2673.5,2673.3,0.00505834]
[1646882345683,1.40614715,2673.8,2673.3,0.00505834]
[1646882346924,0.00306041,2673.7,2673.3,0.00505834]
[1646882347131,0.00184816,2673.7,2673.3,0.00505834]
[1646882347925,1.40614715,2673.8,2673.3,0.00505834]
[1646882348927,1.40614715,2673.8,2673.2,0.08195997]
[1646882350586,1.40614715,2673.8,2673.2,0.00561812]
[1646882350782,2.87175,2673.7,2673.2,0.00561812]
[1646882353383,2.91474852,2673.7,2673.2,0.00561812]
[1646882353783,2.91474852,2673.7,2673.0,0.19249294]
[1646882355828,0.04299852,2673.7,2673.0,0.19249294]
[1646882356029,1.40920728,2673.8,2673.0,0.19249294]
[1646882356229,1.40614715,2673.8,2673.0,0.19249294]
[1646882356429,1.40614715,2673.8,2673.0,1.20509733]
[1646882356630,1.40920728,2673.8,2673.1,0.08953406]
[1646882357428,1.40614715,2673.8,2673.1,0.08953406]
[1646882357828,1.40920739,2673.8,2673.1,0.08953406]
[1646882358675,1.40614715,2673.8,2673.1,0.08953406]
[1646882358880,1.40614715,2673.8,2673.2,0.00566071]
[1646882359076,1.40920739,2673.8,2673.2,0.00566071]
[1646882359875,1.40614715,2673.8,2673.2,0.00566071]
[1646882360078,1.40920745,2673.8,2673.2,0.00566071]
[1646882360678,0.9388403,2673.8,2673.2,0.00566071]
[1646882361082,0.93578,2673.8,2673.2,0.00566071]
[1646882361483,0.9388403,2673.8,2673.3,1.55093601]
[1646882362324,0.93578,2673.8,2673.3,1.55093601]
[1646882362725,0.93884035,2673.8,2673.2,0.00566071]
[1646882363425,1.83578,2673.8,2673.2,0.00566071]
[1646882363624,0.93596,2673.7,2673.2,0.00566071]
[1646882363827,1.87192,2673.6,2672.9,0.08955873]
[1646882365882,0.05270178,2673.5,2672.9,0.00563231]
[1646882366079,0.93589,2673.4,2672.9,0.00563231]
[1646882367283,0.05270178,2673.5,2672.9,0.00563231]
[1646882368282,0.947549,2673.7,2672.9,0.07624603]
[1646882368682,0.93581,2673.7,2672.9,0.07624603]
[1646882369326,0.93581,2673.7,2673.1,0.00567491]
[1646882371132,0.947505,2673.7,2673.1,0.00567491]
[1646882372533,0.011954,2673.5,2673.1,0.00567491]
[1646882373580,0.947844,2673.5,2673.1,0.00567491]
[1646882373779,0.947844,2673.5,2672.9,0.07626023]
[1646882376685,0.04651444,2673.4,2672.9,0.00564651]
[1646882379128,0.04651444,2673.4,2672.8,1.55477491]
[1646882379627,0.04651444,2673.4,2672.8,1.6260063]
[1646882379828,0.011954,2673.5,2672.8,1.6260063]
[1646882380682,0.011954,2673.5,2672.9,3.5]
[1646882382285,0.011954,2673.5,2672.9,4.4357108]
[1646882382687,0.011954,2673.5,2673.0,1.85087232]
[1646882382886,0.011954,2673.5,2673.1,1.55087232]
[1646882383490,0.00305997,2673.8,2673.2,3.57172368]
[1646882383692,0.00305997,2673.8,2673.3,1.55087232]
[1646882383887,1.206267,2673.9,2673.4,3.5]
[1646882384090,0.011667,2673.9,2673.5,1.55087232]
[1646882384330,0.0030603,2673.8,2673.6,1.55087232]
[1646882384529,0.0030603,2673.8,2673.6,1.85087232]
[1646882384729,0.0030603,2673.8,2673.7,1.55087232]
[1646882385329,0.00306046,2673.8,2673.7,1.55087232]
[1646882385938,0.00306046,2673.8,2673.7,5.13822697]
[1646882386140,0.02390701,2674.2,2673.8,3.70612091]
[1646882386343,0.011667,2674.4,2673.9,5.05087232]
[1646882386541,0.011667,2674.4,2674.0,1.55087232]
[1646882386838,0.01224,2674.3,2674.0,1.55087232]
[1646882387338,0.01224,2674.3,2673.8,0.00612091]
[1646882387339,0.011843,2674.2,2673.8,0.00612091]
[1646882387539,0.011843,2674.2,2673.9,1.55063153]
[1646882388381,0.947668,2674.1,2673.8,0.00612091]
[1646882388578,0.012157,2673.9,2673.8,0.00612091]
[1646882389390,1.012157,2673.9,2673.8,0.00612091]
[1646882393628,3.7,2673.8,2672.0,2.89178115]
[1646882393830,0.948662,2673.3,2672.8,1.55105805]
[1646882394027,0.012017,2673.2,2672.9,1.55105805]
[1646882394231,1.30046546,2673.2,2673.0,1.55105805]
[1646882394427,1.30046546,2673.2,2672.5,1.1928]
[1646882394629,0.012081,2673.0,2672.6,1.55118837]
[1646882395429,0.012081,2673.0,2672.6,1.85118837]
[1646882395684,0.012081,2673.0,2672.7,1.55118837]
[1646882395885,0.06635758,2673.2,2672.7,1.55118837]
[1646882396284,0.012017,2673.2,2672.7,1.55118837]
[1646882397487,0.947997,2673.2,2672.7,1.55118837]
[1646882399089,0.947997,2673.2,2672.9,0.00451879]
[1646882401534,0.99446986,2673.2,2672.9,0.00451879]
[1646882403678,0.99446986,2673.2,2672.6,0.30449749]
[1646882403877,0.99446986,2673.2,2672.7,1.55119524]
[1646882405881,0.947997,2673.2,2672.7,1.55119524]
[1646882406083,0.9359,2673.5,2672.8,3.5]
[1646882406284,0.011667,2673.4,2672.9,1.62017704]
[1646882406481,0.011667,2673.4,2673.0,1.55119524]
[1646882406682,0.011667,2673.4,2673.0,1.62797519]
[1646882406933,0.011667,2673.4,2673.1,1.55119524]
[1646882407130,0.011667,2673.4,2673.1,2.41619401]
[1646882407335,0.011667,2673.4,2673.2,1.55119524]
[1646882408032,1.011667,2673.7,2673.3,1.55119524]
[1646882408230,1.011667,2673.7,2673.3,0.08782658]
[1646882408430,1.011667,2673.7,2673.1,0.3]
[1646882408630,1.011667,2673.7,2673.2,1.5510538]
[1646882408830,1.011667,2673.7,2673.3,1.5510538]
[1646882409830,1.011667,2673.7,2673.2,0.0743321]
[1646882410034,1.011667,2673.7,2673.2,0.00448684]
[1646882410431,1.011667,2673.7,2673.3,1.62033231]
[1646882410691,1.011667,2673.7,2673.2,0.00448684]
[1646882410894,1.93709128,2673.7,2673.2,0.00448684]
[1646882411088,1.0,2673.5,2673.2,0.00448684]
[1646882411690,1.0,2673.5,2673.3,1.55101205]
[1646882411889,1.0,2673.5,2673.3,1.85101205]
[1646882412089,1.0,2673.5,2673.2,0.00448684]
[1646882412090,1.0,2673.5,2673.4,1.55101205]
[1646882412290,1.26251147,2673.9,2673.4,1.55101205]
[1646882412491,1.20545107,2673.9,2673.2,0.00448684]
[1646882412692,1.20545107,2673.9,2673.3,1.55098513]
[1646882412693,1.2024066,2673.9,2673.3,1.55098513]
[1646882412889,1.2024066,2673.9,2673.3,1.85098513]
[1646882413089,1.20545139,2673.9,2673.4,1.55098513]
[1646882413290,0.01471179,2673.9,2673.4,0.3]
[1646882413693,0.93583,2673.7,2673.4,0.00446554]
[1646882414533,0.93583,2673.7,2673.5,1.55090359]
[1646882414734,0.93583,2673.7,2673.5,1.85090359]
[1646882414937,0.93583,2673.7,2673.5,0.3]
[1646882415138,0.93583,2673.7,2673.4,0.00446554]
[1646882415342,0.93583,2673.7,2673.5,1.55091232]
[1646882415540,0.93583,2673.7,2673.5,1.85091232]
[1646882415743,0.93583,2673.7,2673.4,0.00446554]
[1646882415940,0.93583,2673.7,2673.5,1.55093111]
[1646882416140,0.93583,2673.7,2673.5,1.85093111]
[1646882416342,0.93583,2673.7,2673.4,0.00446554]
[1646882416542,0.93583,2673.7,2673.5,1.85094871]
[1646882416743,0.00095043,2673.5,2673.4,0.00446554]
[1646882417144,0.00095043,2673.5,2673.4,1.85542621]
[1646882419091,0.00095043,2673.5,2673.4,1.85096067]
[1646882421193,0.00095043,2673.5,2673.4,5.35096067]
[1646882421830,0.00095043,2673.5,2673.4,5.34998539]
[1646882422632,0.00095043,2673.5,2673.4,1.84998539]
[1646882423039,0.00095043,2673.5,2673.4,5.34998539]
[1646882423838,0.00095043,2673.5,2673.4,5.35445093]
[1646882438637,0.00095043,2673.5,2673.4,1.85445093]
[1646882439240,0.00095043,2673.5,2673.4,5.35409953]
[1646882440440,0.00095043,2673.5,2673.4,6.35409953]
[1646882441989,0.00095043,2673.5,2673.4,2.85409953]
[1646882442391,0.00095043,2673.5,2673.4,1.85323346]
[1646882443890,0.00095043,2673.5,2673.4,1.9240955]
[1646882444192,0.00095043,2673.5,2673.4,1.95108192]
[1646882444434,0.00095043,2673.5,2673.4,5.45108192]
[1646882446642,0.00095043,2673.5,2673.4,1.95108192]
[1646882448088,0.00095043,2673.5,2673.4,5.45108192]
[1646882448884,0.00095043,2673.5,2673.4,5.4240955]
[1646882449888,0.00095043,2673.5,2673.4,5.35323346]
[1646882451294,0.00095043,2673.5,2673.4,6.35323346]
[1646882454841,0.00095043,2673.5,2673.4,7.04626423]
[1646882455996,0.00095043,2673.5,2673.4,6.35323346]
[1646882456393,0.00095043,2673.5,2673.4,7.04860837]
[1646882457094,0.00095043,2673.5,2673.4,6.35323346]
[1646882458995,0.00095043,2673.5,2673.4,7.04885906]
[1646882459196,0.00095043,2673.5,2673.4,6.35323346]
[1646882460239,0.00095043,2673.5,2673.4,7.04886437]
[1646882461138,0.00095043,2673.5,2673.4,6.35323346]
[1646882461340,0.00095043,2673.5,2673.4,7.04898043]
[1646882461539,0.00095043,2673.5,2673.4,6.35323346]
[1646882462139,0.00095043,2673.5,2673.4,1.85323346]
[1646882463785,0.01273543,2673.5,2673.4,1.85323346]
[1646882464992,0.00095043,2673.5,2673.4,1.85184611]
[1646882465389,0.00095043,2673.5,2673.4,2.54759308]
[1646882466191,0.00095043,2673.5,2673.4,6.04759308]
[1646882466846,0.00095043,2673.5,2673.4,5.35184611]
[1646882467234,0.00095043,2673.5,2673.4,6.04788465]
[1646882468033,0.00095043,2673.5,2673.4,5.35184611]
[1646882468234,0.00095043,2673.5,2673.4,6.04787023]
[1646882468635,0.00095043,2673.5,2673.4,5.35184611]
[1646882468835,0.00095043,2673.5,2673.4,6.04788814]
[1646882469437,0.00095043,2673.5,2673.4,5.35184611]
[1646882469637,0.00095043,2673.5,2673.4,6.0478765]
[1646882469838,0.00095043,2673.5,2673.4,5.35184611]
[1646882470036,0.00095043,2673.5,2673.4,6.04784381]
[1646882470437,0.00095043,2673.5,2673.4,5.35184611]
[1646882471691,0.00095043,2673.5,2673.4,1.85184611]
[1646882472093,0.00095043,2673.5,2673.4,5.35184611]
[1646882472494,0.00095043,2673.5,2673.4,1.85184611]
[1646882472993,0.00095043,2673.5,2673.4,2.54745114]
[1646882473194,0.00095043,2673.5,2673.4,1.85184611]
[1646882473595,0.00095043,2673.5,2673.4,2.54745114]
[1646882473995,0.00095043,2673.5,2673.4,1.85184611]
[1646882475540,0.01265643,2673.5,2673.4,1.55507481]
[1646882476147,1.2821418,2673.5,2673.4,1.55507481]
[1646882476741,2.2180918,2673.5,2673.4,1.55507481]
[1646882476942,0.05857897,2673.5,2673.4,1.55507481]
[1646882477143,0.05857897,2673.5,2673.4,1.85507481]
[1646882477144,0.01265643,2673.5,2673.4,1.85507481]
[1646882477746,0.00095043,2673.5,2673.4,1.85507481]
[1646882483849,0.00095043,2673.5,2673.4,2.55067984]
[1646882484050,0.00095043,2673.5,2673.4,1.85507481]
[1646882485051,0.00095043,2673.5,2673.4,5.35507481]
[1646882485350,0.00095043,2673.5,2673.4,5.35386816]
[1646882485589,0.00095043,2673.5,2673.4,1.85386816]
[1646882489095,0.00095043,2673.5,2673.4,2.54947319]
[1646882489339,0.00095043,2673.5,2673.4,1.85386816]
[1646882490951,0.00095043,2673.5,2673.4,5.35386816]
[1646882491344,0.00095043,2673.5,2673.4,6.04947319]
[1646882492346,0.00095043,2673.5,2673.4,1.85386816]
[1646882498249,0.90117948,2673.9,2673.4,1.85386816]
[1646882498450,0.90117948,2673.9,2673.5,1.55060927]
[1646882499350,0.89839743,2673.9,2673.5,1.55060927]
[1646882499552,0.90117973,2673.9,2673.5,1.55060927]
[1646882500600,0.89839743,2673.9,2673.5,1.55060927]
[1646882500795,0.90117972,2673.9,2673.5,1.55060927]
[1646882500995,0.90117972,2673.9,2673.5,2.77735903]
[1646882501195,0.00278229,2673.9,2673.6,1.55060927]
[1646882501403,0.00278229,2673.9,2673.6,1.85060927]
[1646882501597,0.04800108,2674.0,2673.7,1.55060927]
[1646882501795,0.04800108,2674.0,2673.7,1.85060927]
[1646882501995,0.00278234,2673.9,2673.8,1.55060927]
[1646882502195,0.00078342,2674.0,2673.8,1.55060927]
[1646882503700,0.93568,2674.2,2673.8,1.55503223]
[1646882503900,0.93568,2674.2,2673.9,1.55060927]
[1646882504098,0.93568,2674.2,2673.9,1.85060927]
[1646882504342,0.93568,2674.2,2674.0,1.55060927]
[1646882504940,0.93568,2674.2,2674.0,1.45060927]
[1646882505141,0.93568,2674.2,2673.9,0.3]
[1646882505350,0.93568,2674.2,2673.8,0.00442296]
[1646882505541,0.00306044,2674.2,2673.8,0.00442296]
[1646882506548,0.93568,2674.1,2673.8,0.00442296]
[1646882506744,0.93874044,2674.1,2673.8,0.00442296]
[1646882507144,0.98470116,2674.1,2673.8,0.00442296]
[1646882507748,0.98164072,2674.1,2673.8,0.00442296]
[1646882507946,0.98470117,2674.1,2673.8,0.00442296]
[1646882509100,0.98470117,2674.1,2673.7,0.02615711]
[1646882509696,0.98470117,2674.1,2673.7,0.00352133]
[1646882510101,0.98164072,2674.1,2673.7,0.00352133]
[1646882510397,0.00306045,2674.0,2673.7,0.00352133]
[1646882511303,0.98164072,2674.1,2673.7,0.00352133]
[1646882511708,0.00306039,2674.0,2673.7,0.00352133]
[1646882511944,0.00306039,2674.0,2673.5,1.4060453]
[1646882512545,0.98164072,2674.1,2673.5,1.4060453]
[1646882512744,0.00306029,2674.0,2673.5,1.4060453]
[1646882513746,0.93568,2674.1,2673.5,1.4060453]
[1646882513946,0.00306029,2674.0,2673.9,0.00441231]
[1646882515047,0.93568,2674.1,2673.9,0.00441231]
[1646882515246,0.93874045,2674.1,2673.9,0.00441231]
[1646882516095,0.93568,2674.1,2673.9,0.00441231]
[1646882516296,0.93874044,2674.1,2673.9,0.00441231]
[1646882517298,0.93568,2674.1,2673.9,0.00441231]
[1646882517500,0.93874044,2674.1,2673.6,0.00593794]
[1646882517701,0.98585185,2674.1,2673.5,1.4060453]